bitfinex-derivatives/quotes_SOLF0:USTF0_20250523
["timestamp","ask_amount","ask_price","bid_price","bid_amount"]
[1747966932226,212.1,184.59,184.51,0.03459793]
[1747966932917,216.90687627,184.59,184.51,0.03459793]
[1747966933129,212.1,184.59,184.51,0.03459793]
[1747966933727,5.4178,184.56,184.51,0.03459793]
[1747966934022,212.1,184.59,184.51,0.03459793]
[1747966934722,212.1,184.59,184.51,103.01459793]
[1747966935422,5.4178,184.56,184.51,108.43359793]
[1747966935625,5.4178,184.56,184.51,5.45359793]
[1747966936527,212.1,184.59,184.52,5.4188]
[1747966936825,212.1,184.59,184.51,0.03459793]
[1747966937017,5.4176,184.57,184.51,0.03459793]
[1747966937218,212.1,184.59,184.51,0.03459793]
[1747966937425,5.4179,184.56,184.51,5.45369793]
[1747966938219,5.4174,184.57,184.52,5.4188]
[1747966938428,212.1,184.59,184.51,103.01459793]
[1747966938724,5.418,184.55,184.51,103.01459793]
[1747966939522,5.4182,184.54,184.51,103.01459793]
[1747966939730,5.4182,184.54,184.51,0.03459793]
[1747966941429,5.4181,184.55,184.51,0.03459793]
[1747966942532,5.4183,184.54,184.51,0.03459793]
[1747966943028,212.1,184.59,184.51,0.03459793]
[1747966943229,5.4186,184.53,184.51,0.03459793]
[1747966943829,5.4188,184.52,184.51,0.03459793]
[1747966944024,211.2588,184.52,184.51,0.03459793]
[1747966945330,211.2588,184.52,184.4,3.9333]
[1747966945331,216.06687627,184.52,184.4,3.9333]
[1747966945530,8.61237627,184.51,184.4,3.9333]
[1747966945724,0.1597,184.58,184.4,3.9333]
[1747966945924,1.9161,184.56,184.44,5.4209]
[1747966946123,1.9161,184.56,184.4,8.74017627]
[1747966946332,0.03673369,184.5,184.46,0.03713811]
[1747966946630,199.98,184.49,184.46,0.03713811]
[1747966947433,0.03673369,184.5,184.46,0.03713811]
[1747966947934,5.45623369,184.5,184.46,0.03713811]
[1747966948530,0.03673369,184.5,184.46,5.45773811]
[1747966948733,0.03673369,184.5,184.46,0.03713811]
[1747966949235,0.03673369,184.5,184.46,5.45753811]
[1747966949425,0.03673369,184.5,184.46,0.03713811]
[1747966949933,0.03673369,184.5,184.47,5.4203]
[1747966950235,0.03673369,184.5,184.46,0.03713811]
[1747966952133,5.4203,184.47,184.46,0.03713811]
[1747966952324,205.4403,184.47,184.46,0.03713811]
[1747966952525,200.02,184.47,184.46,0.03713811]
[1747966953227,468.32,184.49,184.46,0.03713811]
[1747966953422,200.02,184.48,184.46,0.03713811]
[1747966954837,468.32,184.49,184.48,5.42]
[1747966956232,468.32,184.49,184.46,0.03713811]
[1747966956631,468.32,184.49,184.47,5.42]
[1747966957041,468.32,184.49,184.46,0.03713811]
[1747966957940,468.32,184.49,184.47,5.4202]
[1747966958437,468.32,184.49,184.46,5.45773811]
[1747966958640,468.32,184.49,184.46,0.03713811]
[1747966959041,468.32,184.49,184.47,5.4201]
[1747966963240,468.32,184.49,184.46,0.03713811]
[1747966963843,468.32,184.49,184.46,5.45763811]
[1747966964148,468.32,184.49,184.46,0.03713811]
[1747966964344,473.74,184.49,184.46,0.03713811]
[1747966965249,468.32,184.49,184.46,5.45773811]
[1747966965747,468.32,184.49,184.47,5.4203]
[1747966965946,468.32,184.49,184.46,0.03713811]
[1747966966347,468.32,184.49,184.48,5.42]
[1747966966945,0.03673369,184.5,184.49,5.4197]
[1747966967946,199.23726381,184.55,184.53,5.4185]
[1747966968142,199.23726381,184.55,184.51,103.0]
[1747966968545,5.01726381,184.55,184.51,107.80687627]
[1747966968747,5.01726381,184.55,184.51,103.0]
[1747966968949,5.01726381,184.55,184.51,103.03734738]
[1747966969252,5.01726381,184.55,184.54,5.4182]
[1747966970356,468.36,184.58,184.54,5.4182]
[1747966970647,468.36,184.58,184.55,5.4179]
[1747966970853,468.36,184.58,184.51,103.03734738]
[1747966971153,468.36,184.58,184.53,5.4183]
[1747966971354,5.4174,184.57,184.53,5.4183]
[1747966971562,468.36,184.58,184.51,107.84422365]
[1747966972264,468.36,184.58,184.55,5.4179]
[1747966972861,468.36,184.58,184.54,5.4182]
[1747966973064,468.36,184.58,184.52,1.9471]
[1747966973962,468.36,184.58,184.54,5.418]
[1747966974265,188.22,184.61,184.52,6.75397627]
[1747966974459,188.22,184.61,184.55,0.04160237]
[1747966974669,5.4177,184.56,184.55,0.04160237]
[1747966975164,193.637,184.59,184.55,0.04160237]
[1747966975360,468.24,184.66,184.55,0.04160237]
[1747966975361,5.01726381,184.63,184.55,0.04160237]
[1747966975567,5.4167,184.6,184.55,0.04160237]
[1747966975866,5.01726381,184.63,184.55,0.04160237]
[1747966976066,5.01726381,184.63,184.56,5.4175]
[1747966976265,5.4165,184.6,184.55,0.04160237]
[1747966976765,5.4167,184.6,184.55,0.04160237]
[1747966977161,5.4167,184.6,184.56,5.4176]
[1747966977468,5.4168,184.59,184.55,0.04160237]
[1747966977766,5.01726381,184.63,184.55,103.02160237]
[1747966978567,188.22,184.64,184.55,103.02160237]
[1747966979569,5.4168,184.59,184.55,103.02160237]
[1747966979873,188.22,184.64,184.55,103.02160237]
[1747966980568,188.22,184.64,184.55,0.04160237]
[1747966980867,5.4177,184.56,184.55,0.04160237]
[1747966981066,193.5977,184.56,184.55,0.04160237]
[1747966982171,5.4175,184.57,184.55,0.04160237]
[1747966982468,188.18,184.57,184.55,0.04160237]
[1747966982869,5.01726381,184.6,184.55,0.04160237]
[1747966983072,188.18,184.59,184.56,5.4176]
[1747966983272,5.01726381,184.6,184.55,0.04160237]
[1747966983471,193.19726381,184.6,184.55,0.04160237]
[1747966984072,5.4177,184.56,184.55,0.04160237]
[1747966985475,5.4175,184.57,184.55,0.04160237]
[1747966985774,5.01726381,184.61,184.55,0.04160237]
[1747966985973,182.18,184.6,184.55,0.04160237]
[1747966986169,5.417,184.59,184.55,0.04160237]
[1747966986375,5.01726381,184.61,184.55,0.04160237]
[1747966986672,192.61366381,184.61,184.55,0.04160237]
[1747966987174,187.19726381,184.61,184.57,5.4172]
[1747966987473,5.01726381,184.65,184.55,0.04160237]
[1747966987672,182.16,184.64,184.55,4.84847864]
[1747966987877,182.16,184.64,184.56,3.8792]
[1747966988070,182.16,184.64,184.57,102.94]
[1747966988271,5.01726381,184.65,184.6,5.4164]
[1747966988470,182.16,184.64,184.61,0.03908265]
[1747966989973,187.17726381,184.65,184.61,0.03908265]
[1747966990176,182.16,184.65,184.61,0.03908265]
[1747966990468,468.24,184.66,184.61,0.03908265]
[1747966990675,650.4,184.66,184.61,0.03908265]
[1747966990867,650.4,184.66,184.61,5.45518265]
[1747966991376,5.01726381,184.68,184.61,0.03908265]
[1747966993177,188.84968509,184.7,184.61,0.03908265]
[1747966993178,182.16,184.7,184.61,0.03908265]
[1747966993379,5.4139,184.69,184.61,0.03908265]
[1747966993579,182.16,184.69,184.63,0.03997009]
[1747966994173,182.16,184.69,184.65,5.4148]
[1747966994374,187.5739,184.69,184.65,5.4148]
[1747966994578,182.16,184.69,184.66,5.4147]
[1747966994778,182.14,184.71,184.64,102.92]
[1747966995477,182.14,184.71,184.64,104.7461]
[1747966995781,5.01726381,184.73,184.64,111.48297627]
[1747966995984,182.14,184.74,184.64,111.48297627]
[1747966996177,182.14,184.74,184.7,5.4133]
[1747966996374,182.14,184.74,184.67,0.03529257]
[1747966997676,182.1,184.74,184.67,0.03529257]
[1747966997877,468.1,184.75,184.67,0.03529257]
[1747966997878,650.2,184.75,184.67,0.03529257]
[1747966998086,655.6122,184.75,184.7,5.4133]
[1747966998285,655.6122,184.75,184.67,0.03529257]
[1747966998580,650.2,184.75,184.67,0.03529257]
[1747966998783,468.1,184.75,184.72,5.4128]
[1747966998982,468.1,184.75,184.72,0.04109547]
[1747966999182,176.36,184.76,184.72,0.04109547]
[1747966999883,176.36,184.76,184.72,5.45389547]
[1747967000185,176.36,184.76,184.72,0.04109547]
[1747967000784,176.36,184.76,184.73,5.4126]
[1747967001189,176.36,184.76,184.72,0.04109547]
[1747967001485,176.36,184.76,184.74,5.4123]
[1747967001887,176.34,184.77,184.74,5.4123]
[1747967002081,176.34,184.77,184.74,5.45059363]
[1747967002686,176.34,184.77,184.74,0.03829363]
[1747967003282,5.4121,184.75,184.74,0.03829363]
[1747967003490,176.34,184.77,184.65,102.9]
[1747967003681,6.73047627,184.76,184.6,3.8841]
[1747967003884,467.9953,184.75,184.57,6.79757627]
[1747967004080,4.80687627,184.73,184.57,104.8707]
[1747967004377,5.4159,184.62,184.56,4.1282471]
[1747967004583,0.03830146,184.61,184.57,0.04038122]
[1747967005386,0.03830146,184.61,184.58,5.4168]
[1747967005977,0.03830146,184.61,184.57,0.04038122]
[1747967006577,0.03830146,184.61,184.6,5.4165]
[1747967008077,5.4144,184.68,184.59,4.80687627]
[1747967008280,176.34,184.68,184.55,104.7925]
[1747967008474,474.68498509,184.75,184.55,104.7925]
[1747967008475,473.01256381,184.75,184.55,104.7925]
[1747967008676,178.2555,184.74,184.55,104.7925]
[1747967008879,5.4136,184.7,184.56,176.34]
[1747967009082,5.4136,184.7,184.62,4.80687627]
[1747967009291,5.4136,184.7,184.63,104.7684]
[1747967009787,176.34,184.71,184.63,104.7684]
[1747967010089,176.34,184.71,184.65,0.034235]
[1747967010481,176.34,184.71,184.59,102.9]
[1747967011389,0.034235,184.67,184.63,0.03887853]
[1747967011690,0.034235,184.67,184.56,1.8684]
[1747967012089,5.4161,184.62,184.57,5.4173]
[1747967012388,176.36,184.62,184.54,107.70687627]
[1747967012588,0.0378458,184.6,184.56,0.03540596]
[1747967012780,0.0378458,184.6,184.51,4.1282471]
[1747967013187,5.4169,184.59,184.54,5.4181]
[1747967013389,0.0378458,184.6,184.51,4.1282471]
[1747967013583,176.3978458,184.6,184.51,4.1282471]
[1747967013787,176.3978458,184.6,184.54,0.04022903]
[1747967013988,0.04160624,184.59,184.54,0.04022903]
[1747967014184,0.04160624,184.59,184.47,102.92]
[1747967014388,0.154,184.59,184.47,102.92]
[1747967014681,0.154,184.59,184.46,6.72057627]
[1747967015193,0.03976662,184.54,184.51,0.03969605]
[1747967015394,182.06,184.53,184.51,0.03969605]
[1747967016285,182.06,184.53,184.42,4.1282471]
[1747967016493,182.06,184.53,184.42,0.2732471]
[1747967016494,189.75297262,184.53,184.42,0.2732471]
[1747967016784,5.4215,184.44,184.37,5.6962471]
[1747967016990,182.06,184.43,184.37,0.2732471]
[1747967017189,182.09511376,184.42,184.38,0.04071227]
[1747967017594,0.03511376,184.42,184.38,0.04071227]
[1747967018091,1.376e-05,184.42,184.41,5.4221]
[1747967018392,468.02,184.46,184.39,102.96]
[1747967018589,468.02,184.46,184.42,5.4215]
[1747967018795,468.02,184.46,184.4,1.8539]
[1747967019000,468.02,184.46,184.37,103.2332471]
[1747967019189,0.03592953,184.43,184.41,5.4218]
[1747967019386,0.03592953,184.43,184.4,0.03763059]
[1747967019996,0.03592953,184.43,184.42,5.4218]
[1747967021598,468.02,184.46,184.45,5.4209]
[1747967021783,182.16,184.52,184.4,7.73060321]
[1747967021989,182.16,184.53,184.44,7.69297262]
[1747967022192,182.16,184.53,184.52,5.4188]
[1747967022685,0.03511916,184.54,184.51,0.0410887]
[1747967022888,0.03511916,184.54,184.51,0.0350352]
[1747967023298,0.03511916,184.54,184.53,5.4185]
[1747967023998,0.03511916,184.54,184.51,5.4539352]
[1747967024195,0.03511916,184.54,184.51,0.0350352]
[1747967024497,0.03511916,184.54,184.52,5.4186]
[1747967024894,0.03511916,184.54,184.51,0.0350352]
[1747967025296,0.03511916,184.54,184.53,5.4185]
[1747967029602,0.03511916,184.54,184.51,0.0350352]
[1747967030306,0.03511916,184.54,184.51,5.4539352]
[1747967030507,0.03511916,184.54,184.51,0.0350352]
[1747967031006,0.03511916,184.54,184.52,5.4188]
[1747967031207,0.03511916,184.54,184.51,0.0350352]
[1747967032008,0.03511916,184.54,184.53,5.4185]
[1747967032698,0.03511916,184.54,184.51,0.0350352]
[1747967033208,5.45361916,184.54,184.51,0.0350352]
[1747967033707,182.14,184.53,184.51,0.0350352]
[1747967034409,182.14,184.53,184.41,102.96]
[1747967034909,5.4195,184.5,184.41,102.96]
[1747967035320,0.04007183,184.47,184.44,0.03433474]
[1747967035607,0.04007183,184.47,184.45,5.4207]
[1747967036109,0.04007183,184.47,184.46,5.4206]
[1747967037312,7.183e-05,184.47,184.46,5.4206]
[1747967037806,182.18,184.53,184.52,5.4188]
[1747967038110,182.18,184.55,184.44,7.69297262]
[1747967038609,3.067e-05,184.51,184.48,7.73403271]
[1747967038815,182.18,184.55,184.48,7.73403271]
[1747967038816,182.18,184.55,184.49,106.8243]
[1747967039108,468.3,184.57,184.56,5.4177]
[1747967039504,182.18,184.63,184.49,108.7061]
[1747967039710,0.03435047,184.58,184.54,0.03670944]
[1747967040414,5.4176,184.57,184.54,0.03670944]
[1747967040711,0.03435047,184.58,184.54,0.03670944]
[1747967041417,0.03435047,184.58,184.54,5.45490944]
[1747967041812,0.03435047,184.58,184.54,0.03670944]
[1747967042206,182.16,184.57,184.54,0.03670944]
[1747967042512,5.418,184.55,184.54,0.03670944]
[1747967043204,5.4177,184.56,184.54,0.03670944]
[1747967043606,182.16,184.57,184.54,0.03670944]
[1747967044216,5.418,184.55,184.54,0.03670944]
[1747967044815,182.16,184.57,184.54,0.03670944]
[1747967045006,177.36,184.57,184.54,0.03670944]
[1747967045921,7.69297262,184.55,184.3,7.69297262]
[1747967046212,7.69297262,184.55,184.32,3.7623]
[1747967046415,7.69297262,184.55,184.38,5.4229]
[1747967046714,7.69297262,184.55,184.33,108.484485]
[1747967046915,5.4215,184.43,184.42,0.03987733]
[1747967047216,177.36,184.43,184.41,0.03816874]
[1747967047513,177.36,184.43,184.4,0.03945084]
[1747967047709,177.39999885,184.43,184.4,0.03564317]
[1747967048717,5.4218,184.42,184.4,0.03564317]
[1747967048906,177.39999885,184.43,184.4,0.03564317]
[1747967049914,5.422,184.42,184.4,0.03564317]
[1747967050116,177.39999885,184.43,184.4,0.03564317]
[1747967050618,5.4221,184.41,184.4,0.03564317]
[1747967051015,5.4219,184.42,184.4,0.03564317]
[1747967051413,177.39999885,184.43,184.4,0.03564317]
[1747967051616,5.4221,184.41,184.4,0.03564317]
[1747967051915,177.39999885,184.43,184.4,0.03564317]
[1747967052819,0.03999885,184.43,184.4,0.03564317]
[1747967054115,0.03999885,184.43,184.4,5.45794317]
[1747967054720,0.03999885,184.43,184.4,0.03564317]
[1747967055318,0.03999885,184.43,184.42,5.4218]
[1747967055519,0.03999885,184.43,184.4,0.03564317]
[1747967055721,0.03999885,184.43,184.42,5.4218]
[1747967057716,0.03999885,184.43,184.4,5.45774317]
[1747967057922,0.03999885,184.43,184.4,0.03564317]
[1747967058221,5.46179885,184.43,184.4,0.03564317]
[1747967058716,0.03999885,184.43,184.4,0.03564317]
[1747967059821,5.4221,184.41,184.4,0.03564317]
[1747967060224,0.03999885,184.43,184.4,0.03564317]
[1747967061621,5.4219,184.42,184.4,0.03564317]
[1747967062026,0.03999885,184.43,184.4,0.03564317]
[1747967062226,5.4221,184.41,184.4,0.03564317]
[1747967062728,5.4218,184.42,184.4,0.03564317]
[1747967063327,0.03999885,184.43,184.4,0.03564317]
[1747967063528,171.74,184.42,184.4,0.03564317]
[1747967063830,177.1618,184.42,184.4,0.03564317]
[1747967064231,171.74,184.42,184.4,0.03564317]
[1747967064430,171.74,184.42,184.4,5.45794317]
[1747967064731,171.74,184.42,184.4,0.03564317]
[1747967065741,177.162,184.42,184.4,0.03564317]
[1747967066041,171.74,184.42,184.4,0.03564317]
[1747967066638,5.4221,184.41,184.4,0.03564317]
[1747967066846,5.4221,184.41,184.4,4.317e-05]
[1747967067339,5.42,184.41,184.26,103.04]
[1747967067543,171.74,184.42,184.27,3.8897]
[1747967067943,5.4235,184.37,184.27,3.8897]
[1747967068139,171.74,184.36,184.29,5.4255]
[1747967068446,5.425,184.32,184.31,0.03829893]
[1747967068633,0.03764157,184.34,184.3,0.03747429]
[1747967068831,0.03572092,184.34,184.3,0.03514408]
[1747967069139,5.425,184.31,184.3,0.03514408]
[1747967069742,171.76,184.32,184.3,0.03514408]
[1747967073248,5.425,184.31,184.3,0.03514408]
[1747967073441,171.76,184.32,184.3,0.03514408]
[1747967074148,177.1847,184.32,184.3,0.03514408]
[1747967074450,171.76,184.32,184.3,0.03514408]
[1747967075139,5.425,184.31,184.3,0.03514408]
[1747967075644,171.76,184.32,184.3,0.03514408]
[1747967076040,5.425,184.31,184.3,0.03514408]
[1747967076235,0.03572092,184.34,184.2,5.7752]
[1747967076437,171.82,184.33,184.2,5.7752]
[1747967077247,0.03785028,184.28,184.25,0.03616558]
[1747967077746,0.03785028,184.28,184.27,5.4262]
[1747967078448,0.03785028,184.28,184.25,0.03616558]
[1747967078950,171.84,184.27,184.25,0.03616558]
[1747967079350,5.4265,184.26,184.25,0.03616558]
[1747967079644,5.4265,184.26,184.25,6.558e-05]
[1747967079851,5.42,184.26,184.15,3.7264]
[1747967080044,468.8,184.26,184.15,3.7264]
[1747967080551,468.8,184.26,184.17,5.4291]
[1747967080742,468.8,184.26,184.15,3.7264]
[1747967080941,5.428,184.21,184.19,0.03482832]
[1747967081141,171.86,184.2,184.19,0.03482832]
[1747967081744,177.2883,184.2,184.19,0.03482832]
[1747967085752,171.86,184.2,184.19,0.03482832]
[1747967089954,177.2883,184.2,184.19,0.03482832]
[1747967090257,171.86,184.2,184.19,0.03482832]
[1747967091160,171.86,184.2,184.19,5.46342832]
[1747967091353,0.04112964,184.22,184.19,5.46342832]
[1747967091558,171.94,184.2,184.19,5.46342832]
[1747967093465,0.04112964,184.22,184.21,5.428]
[1747967093953,635.74,184.26,184.19,0.03482832]
[1747967094350,635.74,184.26,184.19,3.88912832]
[1747967094550,635.74,184.26,184.24,5.427]
[1747967094855,635.74,184.26,184.19,3.8543]
[1747967095051,0.03600711,184.24,184.21,5.46682738]
[1747967095457,0.03600711,184.24,184.21,0.03912738]
[1747967095660,0.03600711,184.24,184.23,5.4274]
[1747967096159,166.94,184.28,184.21,0.03912738]
[1747967097152,0.03603428,184.26,184.21,0.03912738]
[1747967097553,0.03603428,184.26,184.25,5.4268]
[1747967100159,0.03603428,184.26,184.21,0.03912738]
[1747967100863,5.4277,184.22,184.21,0.03912738]
[1747967101065,166.92,184.22,184.21,0.03912738]
[1747967101265,166.92,184.22,184.21,5.46712738]
[1747967101463,166.92,184.22,184.21,0.03912738]
[1747967102063,172.3477,184.22,184.21,0.03912738]
[1747967103861,166.92,184.22,184.04,11.83618718]
[1747967104065,166.92,184.22,184.09,3.8095]
[1747967104370,5.4293,184.17,184.13,5.4303]
[1747967104569,166.92,184.16,184.13,5.4303]
[1747967104867,166.95428305,184.16,184.13,5.46488683]
[1747967105066,166.95428305,184.16,184.13,0.03458683]
[1747967105770,166.95428305,184.16,184.14,5.43]
[1747967106165,166.95428305,184.16,184.13,0.03458683]
[1747967106370,166.95428305,184.16,184.14,5.4298]
[1747967106666,166.95428305,184.16,184.13,0.03458683]
[1747967106971,166.95428305,184.16,184.15,5.4297]
[1747967107367,469.06,184.23,184.13,0.03458683]
[1747967108263,166.94,184.24,184.13,0.03458683]
[1747967108468,0.03715773,184.2,184.13,0.03458683]
[1747967108666,166.94,184.24,184.13,0.03458683]
[1747967109268,166.94,184.24,184.23,5.4274]
[1747967111061,166.94,184.24,184.22,5.466731]
[1747967112071,166.94,184.24,184.23,5.4274]
[1747967112273,166.94,184.24,184.22,0.039031]
[1747967112670,166.94,184.24,184.22,5.466431]
[1747967113275,166.94,184.24,184.23,5.4274]
[1747967113478,5.01726381,184.35,184.22,0.039031]
[1747967113668,166.94,184.3,184.22,0.039031]
[1747967113869,166.94,184.3,184.28,5.4259]
[1747967114073,166.94,184.3,184.21,1.9316]
[1747967114476,0.03873225,184.27,184.24,0.03452369]
[1747967114967,0.03873225,184.27,184.26,5.4265]
[1747967115163,166.94,184.3,184.24,0.03452369]
[1747967116077,0.0331224,184.29,184.24,5.46132369]
[1747967116267,5.426,184.28,184.24,0.03452369]
[1747967116675,0.0331224,184.29,184.24,0.03452369]
[1747967117279,0.0331224,184.29,184.26,5.4263]
[1747967117470,5.4587224,184.29,184.26,5.4263]
[1747967117671,5.4587224,184.29,184.24,0.03452369]
[1747967117979,5.4587224,184.29,184.25,5.4267]
[1747967118382,5.4587224,184.29,184.24,0.03452369]
[1747967118580,5.4587224,184.29,184.25,5.4267]
[1747967118779,5.4259,184.28,184.24,0.03452369]
[1747967119081,0.0331224,184.29,184.24,0.03452369]
[1747967119574,0.0331224,184.29,184.26,5.4265]
[1747967120182,0.0331224,184.29,184.24,0.03452369]
[1747967121284,5.4590224,184.29,184.25,5.4267]
[1747967121979,5.4590224,184.29,184.26,5.4265]
[1747967122185,0.0331224,184.29,184.24,0.03452369]
[1747967122787,636.02,184.32,184.24,0.03452369]
[1747967123084,166.9,184.32,184.24,0.03452369]
[1747967123488,5.01726381,184.35,184.24,7.72749631]
[1747967123988,5.01726381,184.35,184.34,5.4241]
[1747967124486,176.57452763,184.4,184.33,0.03596635]
[1747967124487,166.54,184.4,184.33,0.03596635]
[1747967124682,468.96,184.41,184.33,0.03596635]
[1747967124883,166.54,184.42,184.33,0.03596635]
[1747967125087,5.05155348,184.43,184.33,0.03596635]
[1747967125282,5.05155348,184.43,184.33,166.57596635]
[1747967125486,10.47315348,184.43,184.37,5.423]
[1747967125682,5.05155348,184.43,184.38,0.03887783]
[1747967126083,5.4218,184.42,184.38,0.03887783]
[1747967126289,5.05155348,184.43,184.38,0.03887783]
[1747967126983,5.4217,184.43,184.39,5.4224]
[1747967127189,166.54,184.47,184.39,5.4224]
[1747967127592,166.54,184.47,184.38,0.03887783]
[1747967127788,168.38,184.51,184.38,0.03887783]
[1747967127987,166.5,184.51,184.43,0.04086916]
[1747967128187,5.4203,184.48,184.43,5.46206916]
[1747967128492,166.5,184.51,184.44,103.1]
[1747967128679,166.5,184.51,184.49,5.4196]
[1747967128885,166.5,184.51,184.48,0.04123739]
[1747967129390,6.68968509,184.53,184.48,0.04123739]
[1747967129891,5.4184,184.54,184.49,5.4195]
[1747967130202,166.46,184.57,184.48,0.04123739]
[1747967130386,166.46,184.57,184.52,5.4186]
[1747967130585,166.46,184.57,184.53,0.03876808]
[1747967131096,166.46,184.57,184.53,5.45736808]
[1747967131485,166.46,184.57,184.53,0.03876808]
[1747967131783,166.4,184.63,184.53,0.03876808]
[1747967131989,166.4,184.63,184.56,0.03708574]
[1747967132694,5.4162,184.61,184.56,5.45468574]
[1747967133193,166.4,184.63,184.56,0.03708574]
[1747967133394,5.4168,184.6,184.56,0.03708574]
[1747967133590,166.4,184.63,184.56,0.03708574]
[1747967133784,5.4169,184.59,184.56,0.03708574]
[1747967134193,166.4,184.63,184.56,0.03708574]
[1747967134396,5.4174,184.57,184.56,0.03708574]
[1747967134592,171.8174,184.57,184.56,0.03708574]
[1747967134893,166.4,184.57,184.48,1.8822]
[1747967135097,634.84,184.57,184.44,3.8733]
[1747967135399,5.4207,184.46,184.4,271.2622]
[1747967135598,166.36,184.5,184.4,104.9022]
[1747967135790,166.36,184.49,184.4,104.9022]
[1747967135984,0.03476114,184.46,184.44,5.421]
[1747967136190,171.7798,184.49,184.43,0.03582395]
[1747967136191,166.36,184.53,184.43,0.03582395]
[1747967136392,166.36,184.53,184.41,7.69297262]
[1747967136898,166.36,184.53,184.42,166.36]
[1747967137091,468.44,184.57,184.42,166.36]
[1747967137291,166.36,184.56,184.46,0.04128589]
[1747967137690,5.419,184.52,184.46,0.04128589]
[1747967137889,166.36,184.56,184.46,0.04128589]
[1747967138110,166.36,184.56,184.49,5.4197]
[1747967138398,166.36,184.56,184.51,0.03604662]
[1747967138600,166.36,184.56,184.52,0.03851711]
[1747967138791,5.418,184.55,184.52,0.03872032]
[1747967139195,5.4183,184.54,184.52,0.03872032]
[1747967139389,166.36,184.56,184.52,0.03872032]
[1747967140400,5.4186,184.53,184.52,0.03872032]
[1747967140596,168.2257,184.56,184.4,1.8822]
[1747967140801,0.1789,184.55,184.4,104.8822]
[1747967140995,0.1789,184.55,184.44,5.4209]
[1747967141301,0.1789,184.55,184.4,104.8822]
[1747967141599,0.03844545,184.49,184.46,0.03973896]
[1747967142800,5.4203,184.47,184.46,0.03973896]
[1747967143192,0.03844545,184.49,184.46,0.03973896]
[1747967143391,5.4203,184.47,184.46,0.03973896]
[1747967143701,0.03844545,184.49,184.46,0.03973896]
[1747967144000,5.4203,184.48,184.46,0.03973896]
[1747967144501,5.45824545,184.49,184.46,0.03973896]
[1747967145312,5.42,184.48,184.46,0.03973896]
[1747967145807,0.03844545,184.49,184.46,0.03973896]
[1747967146097,5.4202,184.48,184.46,0.03973896]
[1747967146401,0.03844545,184.49,184.46,0.03973896]
[1747967146602,5.45844545,184.49,184.46,0.03973896]
[1747967146898,0.03844545,184.49,184.46,0.03973896]
[1747967147604,0.03844545,184.49,184.36,1.9631]
[1747967147804,0.1793,184.49,184.36,1.9631]
[1747967148204,5.4217,184.43,184.36,1.9631]
[1747967148502,1.8182,184.48,184.36,1.9631]
[1747967148704,0.03867405,184.44,184.4,0.04139381]
[1747967149401,5.4216,184.43,184.4,0.04139381]
[1747967150104,0.03867405,184.44,184.4,0.04139381]
[1747967150508,5.45997405,184.44,184.4,0.04139381]
[1747967151310,5.4219,184.42,184.4,0.04139381]
[1747967151808,0.03867405,184.44,184.4,0.04139381]
[1747967153408,0.03867405,184.44,184.4,5.46359381]
[1747967153608,5.45987405,184.44,184.4,5.46359381]
[1747967153908,0.03867405,184.44,184.43,5.4215]
[1747967154804,0.03867405,184.44,184.4,0.04139381]
[1747967155505,5.422,184.42,184.4,0.04139381]
[1747967155711,0.03867405,184.44,184.4,0.04139381]
[1747967156912,5.4218,184.43,184.4,0.04139381]
[1747967157112,0.03867405,184.44,184.4,0.04139381]
[1747967157312,0.03867405,184.44,184.43,5.4215]
[1747967157515,0.03867405,184.44,184.4,0.04139381]
[1747967157912,0.03867405,184.44,184.41,5.4219]
[1747967158408,0.03867405,184.44,184.43,5.4215]
[1747967160300,165.7,184.48,184.47,5.4203]
[1747967161315,165.7,184.48,184.46,5.46134469]
[1747967161708,165.7,184.48,184.46,0.04084469]
[1747967162508,165.7,184.48,184.4,5.4222]
[1747967162915,165.7,184.48,184.35,103.02]
[1747967163309,5.4213,184.44,184.35,103.02]
[1747967163510,0.03740534,184.41,184.38,0.03607811]